Cogmind - Beta 12 X4 @@@ ROGUE MODE // 2022.10.31 @ 16:49:58 Player: albenzo Result: Destroyed self with Grenade Launcher Performance ------------- Evolutions (0) 0 Regions Visited (2) 400 Robots Destroyed (22) 110 Value Destroyed (269) 269 Prototype IDs (2) 40 Alien Tech Used (0) 0 Bonus (-10) -10 TOTAL SCORE: 809 Bonus ------- Friendly Fire -10 Cogmind --------- Core Integrity 0/250 Matter 353/450 Energy 100/100 System Corruption 0% Temperature Cool (0) Movement Core (850) Ox16 Location -10/Mines Parts ------- > --- POWER (1) -------- (None) > --- PROPULSION (2) --- (None) > --- UTILITY (2) ------ High-capacity Storage Unit Large Matter Pod > --- WEAPON (2) ------- Improved Light Cannon Grenade Launcher > --- INVENTORY (20) --- Light Ion Engine Small Storage Unit Medium Storage Unit Structural Scanner Sensor Array Signal Interpreter Terrain Scanner Improved Targeting Computer Medium Laser Improved Light Cannon Improved Light Cannon Improved Light Cannon Grenade Launcher Peak State ------------ > --- POWER ------------ Light Ion Engine > --- PROPULSION ------- Light Treads Light Treads > --- UTILITY ---------- High-capacity Storage Unit Seismic Detector > --- WEAPON ----------- Improved Light Cannon Improved Light Cannon > --- INVENTORY -------- Light Ion Engine Small Storage Unit Medium Storage Unit Large Matter Pod Structural Scanner Sensor Array Signal Interpreter Terrain Scanner Improved Targeting Computer Medium Laser Improved Light Cannon Improved Light Cannon Grenade Launcher Grenade Launcher [Rating: 10] Favorites ----------- Power Ion Engine Engine Ion Engine Propulsion Light Treads Treads Light Treads Utility Seismic Detector Device Seismic Detector Storage Large Storage Unit Weapon Medium Laser Energy Gun Medium Laser Ballistic Cannon Improved Light Cannon Launcher Grenade Launcher Build | -11 -10 -10 ------- Run | Scr Mat Min Slots Evolved . | . . . Power . | . . . Propulsion . | . . . Utility . | . . . Weapon . | . . . Parts Attached 20 | 8 4 8 Power 3 | 2 . 1 Engine 3 | 2 . 1 Core . | . . . Reactor . | . . . Propulsion 4 | 2 1 1 Treads 4 | 2 1 1 Leg . | . . . Wheel . | . . . Hover . | . . . Flight . | . . . Utility 5 | 2 2 1 Device 1 | 1 . . Storage 4 | 1 2 1 Processor . | . . . Hackware . | . . . Protection . | . . . Artifact . | . . . Weapon 8 | 2 1 5 Energy Gun 4 | 2 1 1 Energy Cannon . | . . . Ballistic Gun . | . . . Ballistic Cannon 2 | . . 2 Launcher 2 | . . 2 Special Weapon . | . . . Impact Weapon . | . . . Slashing Weapon . | . . . Piercing Weapon . | . . . Special Melee Weapon . | . . . Unidentified Prototypes . | . . . Parts Lost 7 | . . 7 Power 2 | . . 2 Propulsion 3 | . . 3 Utility 1 | . . 1 Weapon 1 | . . 1 Highest Loss Streak 4 | . . 4 To Critical Strikes . | . . . Average Slot Usage (%) 99 | . 99 98 Engine 13 | . 14 13 Treads 27 | . 27 27 Device 13 | . 14 12 Storage 14 | . 14 15 Energy Gun 26 | . 28 20 Naked Turns . | . . . Heaviest Build 54 | 14 49 54 Greatest Support 40 | 40 40 40 Greatest Overweight (x) 1 | . 1 1 Average Overweight (x) . | . . 1 Largest Inventory Capacity 20 | 8 20 20 Average Capacity 15 | 7 15 20 Most Carried 17 | 7 17 17 Average Carried 13 | 4 14 16 Final Capacity 20 | 8 20 20 Final Carried 17 | 7 17 13 Class Distribution -------------------- 100% | Mutant Dominant Class ---------------- Mutant | -10/Materials Mutant | -10/Mines Resources | -11 -10 -10 ----------- Run | Scr Mat Min Matter Collected 534 | 280 190 64 Remotely . | . . . Salvage Created 533 | 77 366 90 Parts 47 | 8 37 2 Haulers Intercepted 2 | . 2 . Recyclers Shooed . | . . . Parts Field Recycled . | . . . Retrieved Matter . | . . . Parts Self-Destructed . | . . . Prevented . | . . . Kills | -11 -10 -10 ------- Run | Scr Mat Min Combat Hostiles Destroyed 12 | . 9 3 Guns 11 | . 9 2 Cannons 1 | . . 1 Classes Destroyed 7 | 1 4 2 Builder 3 | . 3 . Tunneler 3 | 3 . . Hauler 2 | . 2 . Watcher 3 | . 3 . Swarmer 9 | . 9 . Grunt 2 | . . 2 Assembled 1 | . . 1 Best Kill Streak 4 | 1 4 2 Combat Bots Only 3 | . 3 2 Max Kills in Single Turn 2 | 1 2 1 Gunslinging . | . . . Exploded . | . . . Melee . | . . . Uniques/NPCs Destroyed . | . . . Combat | -11 -10 -10 -------- Run | Scr Mat Min Damage Taken 1053 | . 178 875 Core 272 | . 49 223 Absorbed by Shields . | . . . Regen/Repaired (Parts) 29 | . 29 . Core Remaining (%) 100 | 100 . . Volleys Fired 75 | 6 43 26 Largest 2 | 2 2 2 Hottest 90 | 90 90 90 Shots Fired 142 | 12 86 44 Gun 125 | 12 86 27 Cannon 9 | . . 9 Launcher 8 | . . 8 Special . | . . . Kinetic 9 | . . 9 Thermal 125 | 12 86 27 Explosive 8 | . . 8 Electromagnetic . | . . . Robot Hit Streak 12 | 6 10 12 Robot Miss Streak 4 | 1 4 3 Penetration Max . | . . . Secondary Targets 1 | . 1 . Max Gunslinging Chain 1 | . 1 . Shots Hit Robots 81 | 9 50 22 Core Hits 36 | 3 22 11 Critical Kills . | . . . Critical Parts Destroyed . | . . . Critical Strikes 4 | 1 3 . Burn 4 | 1 3 . Melee Attacks . | . . . Impact . | . . . Slashing . | . . . Piercing . | . . . Sneak Attacks . | . . . Combat Hostiles . | . . . Follow-up Attacks . | . . . Damage Inflicted 1100 | 105 628 367 Guns 958 | 105 628 225 Cannons 107 | . . 107 Explosions 35 | . . 35 Melee . | . . . Ramming . | . . . Kinetic 107 | . . 107 Thermal 958 | 105 628 225 Explosive 35 | . . 35 Electromagnetic . | . . . Impact . | . . . Slashing . | . . . Piercing . | . . . Highest Corruption . | . . . Average Corruption . | . . . Corruption Purged . | . . . Corruption Blocked . | . . . Overload Shots . | . . . Overflow Damage 33 | . . 33 Projectiles . | . . . Explosions 33 | . . 33 Melee . | . . . Knockbacks 2 | . . 2 Impact . | . . . Kinetic 2 | . . 2 Secondary . | . . . Self-Inflicted Damage 48 | . . 48 Shots 2 | . . 2 Rammed . | . . . Targets Rammed . | . . . Kicked . | . . . Crushed . | . . . Highest Temperature 323 | 90 150 323 Average Temperature 70 | 37 55 117 Received Heat Transfer 93 | . . 93 Siege Activations . | . . . Robots Corrupted . | . . . Combat Hostiles . | . . . Parts Fried . | . . . Impact Corruptions . | . . . Robots Melted . | . . . Combat Hostiles . | . . . Parts Melted 3 | . 2 1 Heat Transferred 2849 | 347 1907 595 Parts Sabotaged . | . . . Parts Stolen . | . . . Parts Stripped . | . . . Power Chain Reactions . | . . . Missiles Intercepted . | . . . Alert | -11 -10 -10 ------- Run | Scr Mat Min Peak Influence 129 | 15 129 128 Initial 30 | . 9 30 Average 61 | 5 64 82 Maximum Alert Level . | . . . Low Security (%) 100 | 100 100 100 Level 1 . | . . . Level 2 . | . . . Level 3 . | . . . Level 4 . | . . . Level 5 . | . . . High Security . | . . . Max Security . | . . . Squads Dispatched . | . . . Investigation . | . . . Extermination . | . . . Reinforcement . | . . . Assault . | . . . Garrison . | . . . Intercept . | . . . Searches Triggered . | . . . Construction Impeded . | . . . Haulers Reinforced . | . . . Active Scanning Responses . | . . . Cargo Convoy Interrupts . | . . . Stealth | -11 -10 -10 --------- Run | Scr Mat Min Distress Signals 1 | . 1 . Communications Jammed . | . . . Distress Signals . | . . . Times Spotted 32 | . 20 12 Peak Tracking Total 5 | . 4 5 Tactical Retreats . | . . . Traps | -11 -10 -10 ------- Run | Scr Mat Min Traps Triggered 1 | . 1 . Indirectly . | . . . Trap Hack Attempts . | . . . Triggered . | . . . Disarmed . | . . . Reprogrammed . | . . . Reused . | . . . Traps Extracted . | . . . Installed . | . . . Triggered . | . . . Machines | -11 -10 -10 ---------- Run | Scr Mat Min Machines Disabled 1 | . . 1 Max in Single Turn 1 | . . 1 Machines Sabotaged . | . . . Overloaded Fab Kills . | . . . Hacking | -11 -10 -10 --------- Run | Scr Mat Min Machines Accessed 9 | . 9 . Terminals 6 | . 6 . Fabricators . | . . . Repair Stations 1 | . 1 . Recycling Units 2 | . 2 . Scanalyzers . | . . . Garrison Access . | . . . Total Hacks 33 | . 33 . Successful 21 | . 21 . Failed 12 | . 12 . Catastrophic 2 | . 2 . Database Lockouts . | . . . Manual 13 | . 13 . Terminals 23 | . 23 . Fabricators . | . . . Repair Stations 4 | . 4 . Recycling Units 6 | . 6 . Scanalyzers . | . . . Garrison Access . | . . . Terminal Hacks 10 | . 10 . Prototype ID Bank 1 | . 1 . Terminal Index 1 | . 1 . Alert Level 1 | . 1 . Locate Traps 2 | . 2 . Security Status 1 | . 1 . Patrol Status 1 | . 1 . Hauler Manifests 1 | . 1 . Registered Components 1 | . 1 . Zone Layout 1 | . 1 . Fabricator Hacks . | . . . Repair Station Hacks 3 | . 3 . Scan Component 2 | . 2 . Repair 1 | . 1 . Recycling Unit Hacks 2 | . 2 . Report Inventory 2 | . 2 . Scanalyzer . | . . . Garrison Access Hacks . | . . . Unauthorized Hacks 6 | . 6 . Terminals 2 | . 2 . Assimilate 1 | . 1 . Operators 1 | . 1 . Fabricators . | . . . Repair Stations . | . . . Recycling Units 4 | . 4 . Reject 2 | . 2 . Mask 2 | . 2 . Scanalyzers . | . . . Garrison Access . | . . . Data Cores Recovered . | . . . Used . | . . . Hacking Detections 7 | . 7 . Full Trace Events 1 | . 1 . Feedback Events . | . . . Feedback Blocked . | . . . Robot Schematics Acquired . | . . . Robots Built . | . . . Authchips . | . . . Time . | . . . Total Robot Build Rating . | . . . Part Schematics Acquired . | . . . Parts Built . | . . . Authchips . | . . . Time . | . . . Total Part Build Rating . | . . . Parts Repaired 1 | . 1 . Time 36 | . 36 . Parts Recycled . | . . . Recycled Matter . | . . . Retrieved Matter . | . . . Retrieved Components . | . . . Parts Scanalyzed . | . . . Part Schematics Acquired . | . . . Parts Damaged . | . . . Bothacking | -11 -10 -10 ------------ Run | Scr Mat Min Used RIF Installer . | . . . Robots Hacked . | . . . Non-combat . | . . . Combat . | . . . Robot Hacks Applied . | . . . Relay Couplers Released . | . . . Fabnet Peak Effective % . | . . . Robots Rewired . | . . . Allies Hacked . | . . . Hacks Repelled . | . . . Allies | -11 -10 -10 -------- Run | Scr Mat Min Total Allies 1 | . 1 . Largest Group 1 | . 1 1 Highest-Rated Group 10 | . 10 10 Highest-Rated Ally 10 | . 10 10 Total Orders . | . . . Ally Attacks . | . . . Total Damage . | . . . Kills . | . . . Allies Corrupted . | . . . Allies Melted . | . . . Intel | -11 -10 -10 ------- Run | Scr Mat Min Robot Analysis Total . | . . . Derelict Logs Recovered 1 | . . 1 Drone Launches . | . . . Drone Recoveries . | . . . Exploration | -11 -10 -10 ------------- Run | Scr Mat Min Turns Passed 1832 | 160 1427 245 Spaces Moved 874 | 82 725 67 Core 6 | 6 . . Treads 868 | 76 725 67 Legs . | . . . Wheels . | . . . Hover . | . . . Flight . | . . . Fastest Speed 50 | 50 160 240 Average Speed 169 | 151 165 240 Slowest Speed 240 | 160 240 240 Overloaded Moves . | . . . Propulsion Burnouts . | . . . Robots Hopped . | . . . Cave-ins Triggered . | . . . Exploration Rate (%) 39 | 6 92 20 Regions Visited 2 Branch Regions 1 Pre-discovered Areas . | . . . Known Exits Taken . | . . . Unknown Exits Taken 2 | 1 1 . Scrap Searched . | . . . Spaces Dug . | . . . Terrain Destroyed 34 | . . 34 Melee . | . . . Projectile . | . . . AOE 34 | . . 34 Terrain Rammed . | . . . Walls Destroyed . | . . . Machines Disabled . | . . . Actions | -11 -10 -10 --------- Run | Scr Mat Min Total 1088 | 102 879 107 Wait 70 | 1 63 6 Move 872 | 81 724 67 Hop . | . . . Pick Up 32 | 6 26 . Fast Attach 8 | 7 1 . Attach 4 | . . 4 Detach . | . . . Swap 8 | 1 3 4 Drop 19 | . 19 . Fire 75 | 6 43 26 Melee . | . . . Ram . | . . . Kick . | . . . Crush . | . . . Escape Stasis . | . . . Rewire . | . . . Trap . | . . . Miscellaneous . | . . . Route ------- -11/Scrapyard -10/Materials (discovered 4 exits: [*Mat x2] / [*Min x2]) -10/Mines History --------- Turn | Location | Event 13 | -11/Scrapyard | Discovered new exit (range 14) 161 | -11/Scrapyard | Entered Materials 312 | -10/Materials | Build established: Mutant 324 | -10/Materials | Discovered new exit (range 9) 716 | -10/Materials | Discovered new exit (range 11) 851 | -10/Materials | Discovered new exit (range 3) 913 | -10/Materials | Repaired Broken Lgt. Treads 1192 | -10/Materials | Discovered new exit (range 15) 1588 | -10/Materials | Entered Mines 1588 | -10/Mines | Accompanied by 1 ally 1734 | -10/Mines | Assembled infested the area 1739 | -10/Mines | Assisted by a Guerilla fighting off Assembled 1746 | -10/Mines | Learned location of 1 exit from Materials 1770 | -10/Mines | Core integrity fell below 50% 1794 | -10/Mines | Lost 3 parts (1p1n1w) 1806 | -10/Mines | Core integrity fell below 20% 1833 | -10/Mines | Destroyed self with Grenade Launcher Last Messages --------------- 01809_ U-05 Engineer builds a Wall. 01811_ K-01 Serf collects debris. 01812_ U-05 Engineer builds a Wall. 01813_ U-05 Engineer lays Concrete. 01814_ U-05 Engineer builds a Wall. 01815_ K-01 Serf collects debris. 01819_ U-05 Engineer builds a Wall. 01823_ The unstable cave ceiling collapses. 01823_ U-05 Engineer lays Concrete. 01824_ U-05 Engineer builds a Wall. 01825_ Core Extractor disabled. 01825_ Lgt. Ion Engine destroyed. 01827_ U-05 Engineer lays Concrete. 01828_ U-05 Engineer builds a Wall. 01829_ The unstable cave ceiling collapses. 01829_ Acquired 7 matter. 01829_ U-05 Engineer lays Concrete. 01829_ U-05 Engineer destroyed. 01830_ Lgt. Treads destroyed. 01833_ Destroyed Lgt. Treads. Map ----- +----------------------------------------------------+ | ??????????????????????????????????????????????? | | ??????????????????????????????????????????????? | | ??????????????????????????????????????????????? | | ??????????????????????????????????????????????? | | ??????????????????????????????????????????????? | | ??????????????????????????????????????????????? | | ??????????????????????????????????????????????? | | ??????????????????????????????????????????????? | | ??????????????????????????????????????????????? | | ??????????????????????????????????????????????? | | ??????????????????? ??? ????????????????????? | | ??????????????????? %??# ????????????????????? | | ??????????????????? ??# ????????????????????? | | ??????????????????? ??# ????????????????????? | | ??????????????????? ??# ????????????##??????? | | ??????????????????? ??# ##????????? #??????? | | ??????????????????? #?## ###?????? ??????? | | ??????????????????# ### ###??? ???????? | | ??###########?????# %## #?? #????????? | | ?# #?????#% # #? ##???????? | | ?# """%""" #??#### ? % ##% #???????? | | ?# """=""" #?## ??# #???????? | | ?# """ """ #?# ??## = #????????? | | ?# ### #??# # % #??????????? | | ?# """ % ########### = #??????????? | | ?# """ a@ u a|%!#???????????? | | ?# """ ##### #### ##???????????? | | ?# #?# #%# #???????????? | | ?# " " """ #??### # # #???????????? | | ?# """ "" #???# # # ###???????????? | | ?# """ """ #########|# ####?????????????? | | ?# *%=# #????????????????? | | ?#########################%###????????????????? | | ?????????????????????????# #??????????????????? | | ??????????????????#####??# #??????????????????? | | ?????????????????## ####%### #??????????????? | | ?????????????????# #??????????????? | | ????????????????# ##########??????????????? | | ????????????????# ##???????????????????????? | | ?????????????????####?????????????????????????? | | ??????????????????????????????????????????????? | | ??????????????????????????????????????????????? | | ??????????????????????????????????????????????? | | ??????????????????????????????????????????????? | | ??????????????????????????????????????????????? | | ??????????????????????????????????????????????? | | ??????????????????????????????????????????????? | | ??????????????????????????????????????????????? | | ??????????????????????????????????????????????? | | ??????????????????????????????????????????????? | +----------------------------------------------------+ Best States ------------- Heat Dissipation 25 Energy Generation 10 Energy Capacity 250 Matter Stores 421 Matter Capacity 450 Sight Range 16 Terrain Scan Density 10 Evasion (%) 40 Recoil Reduction 2 Item Schematics ----------------- None Robot Schematics ------------------ None Fabricated ------------ Nothing Alien Tech Used ----------------- None Achievements -------------- None Challenges ------------ None Game ------ Seed ChainOmegaMembrane Manual? 0 Play Time 00:14:53 Cumulative 95.3 hours Start 2022.10.31 @ 16:37:15 End 2022.10.31 @ 16:49:58 Sessions 1 Manual Loads 0 Difficulty Rogue Special Mode None Game No. 80 Rogue 80 Adventurer 0 Explorer 0 Win Type - Total 5 Types 4/0/1/0/0/0/0/0/0 Lore% 64 Gallery% 63 Achievement% 55 Wizard Run 0 Options --------- ASCII 0 Keyboard 1 Movement Vi Keybinds 0 Fullscreen 2 Font 24/Proggy Map View 76x50 Tactical HUD 1 Map Filters NONE Filters NONE Steam 1 RUN: 439ca37b-a9f2-4688-93fa-3a343523a8ff